fUSD/lending_fUSD_20251228
["ID","MTS","AMOUNT","RATE_DAILY","PERIOD"]
[399955279,1766938241619,-500.0,0.00015121,2]
[399955280,1766938241628,-1000.0,0.00015121,2]
[399955281,1766938241639,-1000.0,0.00015121,2]
[399955282,1766938241653,-500.0,0.00015121,2]
[399955283,1766938241663,-500.0,0.00015149,2]
[399955284,1766938241673,-200.0,0.00015149,2]
[399955285,1766938241684,-1680.0,0.00015149,2]
[399955286,1766938241694,-232.29885033,0.00015166,2]
[399955287,1766938241705,-150.0,0.00015288,2]
[399955288,1766938241717,-150.0,0.00015288,2]
[399955289,1766938241727,-150.0,0.00015288,2]
[399955290,1766938241737,-150.0,0.00015288,2]
[399955291,1766938241746,-150.0,0.00015288,2]
[399955292,1766938241756,-150.0,0.00015288,2]
[399955293,1766938241765,-150.0,0.00015288,2]
[399955294,1766938241775,-150.0,0.00015288,2]
[399955295,1766938241784,-150.0,0.00015288,2]
[399955296,1766938241795,-150.0,0.00015288,2]
[399955297,1766938241805,-422.34645862,0.00015342,2]
[399955298,1766938241814,-151.0,0.0001535,2]
[399955299,1766938241824,-504.0,0.0001537,2]
[399955300,1766938241833,-1451.94,0.00015378,2]
[399955301,1766938241844,-150.0,0.00015401,2]
[399955302,1766938241855,-500.0,0.00015423,2]
[399955303,1766938241869,-1000.0,0.00015473,2]
[399955304,1766938241880,-10027.13268045,0.0001548,2]
[399955305,1766938241891,-150.0,0.000155,2]
[399955306,1766938241903,-232.29885033,0.00015513,2]
[399955307,1766938241914,-150.0,0.00015514,2]
[399955308,1766938241924,-1099.98058356,0.00015521,2]
[399955309,1766938241936,-1000.0,0.00015521,2]
[399955310,1766938241946,-500.81919324,0.00015521,2]
[399955311,1766938241956,-632.38992075,0.00015521,2]
[399955312,1766938241967,-1000.0,0.00015521,2]
[399955313,1766938241976,-1000.0,0.00015521,2]
[399955314,1766938241986,-500.0,0.00015521,2]
[399955315,1766938241995,-150.0,0.0001553,2]
[399955316,1766938242005,-150.0,0.0001553,2]
[399955317,1766938242014,-150.0,0.00015571,2]
[399955318,1766938242024,-150.0,0.00015627,2]
[399955319,1766938242033,-150.0,0.00015627,2]
[399955320,1766938242043,-1451.94,0.00015652,2]
[399955321,1766938242052,-1500.0,0.00015668,2]
[399955322,1766938242064,-1500.0,0.00015668,2]
[399955323,1766938242074,-1500.0,0.00015668,2]
[399955324,1766938242084,-1500.0,0.00015668,2]
[399955325,1766938242094,-1500.0,0.00015668,2]
[399955326,1766938242103,-574.4149174,0.00015668,2]
[399955327,1766938242112,-1500.0,0.00015668,2]
[399955328,1766938242122,-501.70391837,0.00015668,2]
[399955329,1766938242131,-1500.0,0.00015668,2]
[399955330,1766938242141,-500.0,0.00015697,2]
[399955331,1766938242151,-2961.0,0.00015704,2]
[399955332,1766938242161,-177.04701697,0.00015706,2]
[399955333,1766938242170,-150.0,0.00015712,2]
[399955334,1766938242180,-161.17,0.00015726,2]
[399955335,1766938242189,-150.0,0.00015741,2]
[399955336,1766938242199,-150.0,0.00015773,2]
[399955337,1766938242209,-150.0,0.00015773,2]
[399955338,1766938242218,-3240.0,0.00015789,2]
[399955339,1766938242228,-150.0,0.00015854,2]
[399955340,1766938242238,-150.0,0.00015854,2]
[399955341,1766938242247,-150.0,0.00015854,2]
[399955342,1766938242258,-232.29885033,0.0001586,2]
[399955343,1766938242273,-7239.91772608,0.00015916,2]
[399955344,1766938242282,-150.0,0.00015925,2]
[399955345,1766938242292,-1451.94,0.00015926,2]
[399955346,1766938242302,-150.0,0.00015967,2]
[399955347,1766938242312,-150.0,0.00015967,2]
[399955348,1766938242322,-500.0,0.00015971,2]
[399955349,1766938242331,-511.82107275,0.00015973,2]
[399955350,1766938242340,-502.71159199,0.00015973,2]
[399955351,1766938242350,-500.0,0.00015973,2]
[399955352,1766938242360,-163.47849716,0.00015973,2]
[399955353,1766938242369,-500.0,0.00015973,2]
[399955354,1766938242380,-413.88399981,0.00015973,2]
[399955355,1766938242389,-500.0,0.00015973,2]
[399955356,1766938242399,-500.0,0.00015973,2]
[399955357,1766938242409,-500.0,0.00015973,2]
[399955358,1766938242418,-500.0,0.00015973,2]
[399955359,1766938242427,-16854.16,0.0001599,2]
[399955360,1766938242437,-533.93594502,0.00015999,2]
[399955361,1766938242446,-500.0,0.00015999,2]
[399955362,1766938242455,-500.0,0.00015999,2]
[399955363,1766938242468,-500.0,0.00015999,2]
[399955364,1766938242478,-500.0,0.00015999,2]
[399955365,1766938242487,-500.0,0.00015999,2]
[399955366,1766938242496,-500.0,0.00015999,2]
[399955367,1766938242506,-659.96,0.00016,2]
[399955368,1766938242515,-659.96,0.00016,2]
[399955369,1766938242525,-368416.6659133,0.00016,3]
[399955370,1766938242534,-150.0,0.00016016,2]
[399955371,1766938242544,-150.0,0.00016016,2]
[399955372,1766938242553,-7239.91772607,0.00016025,2]
[399955373,1766938242563,-169.53966379,0.00016068,2]
[399955375,1766938242573,-439.3417286,0.00016068,2]
[399955376,1766938242582,-1500.0,0.00016068,2]
[399955378,1766938242592,-150.0,0.0001608,2]
[399955380,1766938242601,-433.0,0.00016112,2]
[399955382,1766938242610,-7239.91772607,0.00016135,2]
[399955384,1766938242620,-150.0,0.00016137,2]
[399955385,1766938242629,-150.0,0.00016137,2]
[399955386,1766938242638,-150.0,0.00016137,2]
[399955387,1766938242648,-250.0,0.00016149,2]
[399955390,1766938242660,-500.0,0.00016149,2]
[399955392,1766938242670,-500.0,0.00016149,2]
[399955394,1766938242681,-500.0,0.00016149,2]
[399955396,1766938242691,-500.0,0.00016149,2]
[399955398,1766938242701,-500.0,0.00016149,2]
[399955400,1766938242712,-201.93286099,0.00016149,2]
[399955402,1766938242722,-153.47713146,0.00016149,2]
[399955403,1766938242732,-553.64373807,0.00016149,2]
[399955404,1766938242741,-200.0,0.00016149,2]
[399955405,1766938242752,-207.4,0.00016149,2]
[399955406,1766938242762,-157.57578229,0.00016149,2]
[399955407,1766938242773,-642.94,0.00016149,2]
[399955408,1766938242783,-1108.21605715,0.00016172,5]
[399955409,1766938242795,-1108.21605715,0.00016173,5]
[399955410,1766938242805,-7957.2104,0.00016174,2]
[399955411,1766938242815,-1000.0,0.00016174,2]
[399955412,1766938242824,-150.0,0.00016194,2]
[399955413,1766938242833,-1451.94,0.000162,2]
[399955414,1766938242842,-232.29885033,0.00016207,2]
[399955415,1766938242852,-724.95814734,0.00016216,2]
[399955416,1766938242864,-1847.68423544,0.00016216,2]
[399955417,1766938242874,-997.74933683,0.00016216,2]
[399955418,1766938242883,-2000.0,0.00016216,2]
[399955419,1766938242892,-1000.0,0.00016216,2]
[399955420,1766938242902,-2000.0,0.00016216,2]
[399955421,1766938242912,-2000.0,0.00016216,2]
[399955422,1766938242922,-7239.91772607,0.00016244,2]
[399955423,1766938242932,-500.0,0.00016245,2]
[399955424,1766938242941,-150.0,0.00016258,2]
[399955425,1766938243200,-150.0,0.00016258,2]
[399955426,1766938243211,-500.0,0.00016273,2]
[399955427,1766938243222,-500.0,0.00016273,2]
[399955428,1766938243233,-500.0,0.00016273,2]
[399955429,1766938243242,-500.0,0.00016273,2]
[399955430,1766938243252,-500.0,0.00016273,2]
[399955431,1766938243261,-500.0,0.00016273,2]
[399955432,1766938243272,-500.0,0.00016273,2]
[399955433,1766938243282,-500.0,0.00016273,2]
[399955434,1766938243293,-500.0,0.00016273,2]
[399955435,1766938243305,-500.0,0.00016273,2]
[399955436,1766938243315,-500.0,0.00016273,2]
[399955437,1766938243325,-150.0,0.00016307,2]
[399955438,1766938243336,-150.0,0.00016307,2]
[399955439,1766938243349,-150.0,0.00016349,2]
[399955440,1766938243359,-7239.91772607,0.00016353,2]
[399955441,1766938243370,-168.0,0.00016385,2]
[399955442,1766938243381,-150.0,0.0001642,2]
[399955443,1766938243392,-150.0,0.0001642,2]
[399955444,1766938243402,-150.0,0.0001642,2]
[399955445,1766938243412,-5102.30663022,0.00016438,2]
[399955446,1766938243422,-280.44326248,0.00016438,2]
[399955447,1766938243433,-3874.97124849,0.00016438,2]
[399955448,1766938243444,-150.0,0.00016452,2]
[399955449,1766938243453,-500.0,0.00016452,2]
[399955450,1766938243463,-150.0,0.00016452,2]
[399955451,1766938243472,-150.0,0.00016452,2]
[399955452,1766938243482,-150.0,0.00016452,2]
[399955453,1766938243492,-244.86390051,0.00016452,2]
[399955454,1766938243501,-150.0,0.00016452,2]
[399955455,1766938243511,-500.0,0.00016452,2]
[399955456,1766938243520,-150.0,0.00016452,2]
[399955457,1766938243530,-152.95414215,0.00016452,2]
[399955458,1766938243540,-237.83643607,0.00016452,2]
[399955459,1766938243549,-150.0,0.00016452,2]
[399955460,1766938243559,-1806.0,0.00016452,2]
[399955461,1766938243568,-150.0,0.00016452,2]
[399955462,1766938243578,-200.0,0.00016452,2]
[399955463,1766938243587,-7239.91772607,0.00016463,2]
[399955464,1766938243597,-1451.94,0.00016474,2]
[399955465,1766938243606,-164.91531166,0.00016479,2]
[399955466,1766938243616,-500.0,0.00016479,2]
[399955467,1766938243626,-150.0,0.00016479,2]
[399955468,1766938243636,-176.84626368,0.00016479,2]
[399955469,1766938243647,-200.0,0.00016479,2]
[399955470,1766938243657,-150.0,0.00016479,2]
[399955471,1766938243667,-500.0,0.00016479,2]
[399955472,1766938243677,-151.47551324,0.00016479,2]
[399955473,1766938243688,-150.0,0.00016479,2]
[399955474,1766938243698,-1806.0,0.00016479,2]
[399955475,1766938243708,-150.0,0.00016479,2]
[399955476,1766938243718,-150.0,0.00016501,2]
[399955477,1766938243733,-150.0,0.00016501,2]
[399955478,1766938243747,-350.0,0.00016507,2]
[399955480,1766938243757,-150.0,0.00016507,2]
[399955481,1766938243767,-500.0,0.00016507,2]
[399955482,1766938243777,-150.0,0.00016507,2]
[399955484,1766938243787,-1806.0,0.00016507,2]
[399955487,1766938243797,-150.0,0.00016507,2]
[399955489,1766938243807,-443.51805555,0.00016521,2]
[399955491,1766938243817,-503.73099585,0.00016521,2]
[399955494,1766938243827,-1000.0,0.00016521,2]
[399955496,1766938243837,-1000.0,0.00016521,2]
[399955497,1766938243848,-150.0,0.00016533,2]
[399955498,1766938243859,-150.0,0.00016534,2]
[399955499,1766938243871,-173.98935038,0.00016534,2]
[399955500,1766938243880,-150.0,0.00016534,2]
[399955501,1766938243890,-1806.0,0.00016534,2]
[399955502,1766938243903,-225.38136853,0.00016534,2]
[399955503,1766938243916,-587.0,0.00016538,2]
[399955504,1766938243926,-587.0,0.00016538,2]
[399955505,1766938243936,-587.0,0.00016538,2]
[399955506,1766938243945,-232.29885033,0.00016553,2]
[399955507,1766938243955,-150.0,0.00016562,2]
[399955508,1766938243964,-259.1636992,0.00016562,2]
[399955509,1766938243974,-1806.0,0.00016562,2]
[399955510,1766938243983,-150.0,0.00016562,2]
[399955511,1766938243992,-500.0,0.00016575,2]
[399955512,1766938244004,-551.85860917,0.00016575,2]
[399955513,1766938244014,-250.0,0.00016589,2]
[399955514,1766938244024,-1806.0,0.00016589,2]
[399955515,1766938244033,-1899.1,0.00016604,2]
[399955516,1766938244044,-1806.0,0.00016616,2]
[399955517,1766938244053,-2000.0,0.00016616,2]
[399955518,1766938244063,-193.237428,0.00016634,2]
[399955519,1766938244073,-500.0,0.00016634,2]
[399955520,1766938244082,-1806.0,0.00016644,2]
[399955521,1766938244092,-150.0,0.00016647,2]
[399955522,1766938244101,-150.0,0.00016647,2]
[399955523,1766938244111,-2431.0,0.00016649,2]
[399955524,1766938244121,-4810.0,0.00016649,2]
[399955525,1766938244131,-564.0,0.00016649,2]
[399955526,1766938244141,-324.31797014,0.0001666,2]
[399955527,1766938244150,-2351.0,0.00016664,2]
[399955528,1766938244159,-1806.0,0.00016671,2]
[399955529,1766938244169,-226.50249047,0.00016697,2]
[399955530,1766938244178,-574.12855637,0.00016697,2]
[399955531,1766938244188,-1806.0,0.00016699,2]
[399955532,1766938244197,-150.0,0.00016703,2]
[399955533,1766938244206,-168.0,0.00016706,2]
[399955534,1766938244216,-1806.0,0.00016726,2]
[399955535,1766938244226,-500.0,0.00016726,2]
[399955536,1766938244236,-150.0,0.00016744,2]
[399955537,1766938244246,-150.0,0.00016744,2]
[399955538,1766938244255,-1451.94,0.00016748,2]
[399955539,1766938244265,-1806.0,0.00016753,2]
[399955540,1766938244275,-150.0,0.0001676,2]
[399955541,1766938244284,-421.98541227,0.00016764,2]
[399955542,1766938244293,-1000.0,0.00016764,2]
[399955543,1766938244306,-1000.0,0.00016764,2]
[399955544,1766938244318,-150.0,0.00016774,2]
[399955545,1766938244328,-1806.0,0.00016781,2]
[399955546,1766938244341,-1584.294,0.00016781,2]
[399955547,1766938244351,-181.608,0.00016781,2]
[399955548,1766938244362,-208.86276468,0.00016792,2]
[399955549,1766938244371,-1009.0,0.000168,2]
[399955550,1766938244382,-1806.0,0.00016808,2]
[399955551,1766938244393,-1806.0,0.00016836,2]
[399955552,1766938244406,-1806.0,0.00016863,2]
[399955553,1766938244418,-150.0,0.00016873,2]
[399955554,1766938244429,-1806.0,0.0001689,2]
[399955555,1766938244441,-165.1108,0.000169,2]
[399955556,1766938244451,-177.04701697,0.000169,2]
[399955557,1766938244461,-232.29885033,0.000169,2]
[399955558,1766938244472,-1806.0,0.00016918,2]
[399955559,1766938244483,-203.9629744,0.00016922,2]
[399955560,1766938244493,-1806.0,0.00016945,2]
[399955561,1766938244505,-659.96,0.00016959,2]
[399955562,1766938244514,-659.96,0.00016959,2]
[399955563,1766938244524,-659.96,0.00016959,2]
[399955564,1766938244535,-659.96,0.00016959,2]
[399955565,1766938244545,-292.69,0.00016959,2]
[399955566,1766938244555,-1806.0,0.00016973,2]
[399955567,1766938244566,-500.0,0.00016973,2]
[399955568,1766938244575,-150.11199507,0.00016973,2]
[399955569,1766938244585,-150.0,0.00016986,2]
[399955570,1766938244595,-150.0,0.00016986,2]
[399955571,1766938244605,-150.0,0.00016986,2]
[399955572,1766938244615,-150.0,0.00016986,2]
[399955573,1766938244625,-150.0,0.00016986,2]
[399955574,1766938244636,-150.0,0.00016986,2]
[399955575,1766938244645,-150.00000001,0.00016986,2]
[399955576,1766938244656,-150.0,0.00016986,2]
[399955577,1766938244665,-150.0,0.00016986,2]
[399955578,1766938244676,-500.0,0.00016996,2]
[399955579,1766938244690,-85293.8170181,0.00016997,2]
[399955580,1766938244700,-6011.3906893,0.00016997,2]
[399955581,1766938244711,-226629.7128423,0.00016997,2]
[399955582,1766938244721,-25562.8038686,0.00016997,2]
[399955583,1766938244730,-300.0,0.00016999,2]
[399955584,1766938244740,-500.0,0.00016999,2]
[399955585,1766938244750,-500.0,0.00016999,2]
[399955586,1766938244760,-500.0,0.00016999,2]
[399955587,1766938244770,-500.0,0.00016999,2]
[399955588,1766938244780,-500.0,0.00016999,2]
[399955589,1766938244790,-646.48024776,0.00016999,2]
[399955590,1766938244803,-500.0,0.00016999,2]
[399955591,1766938244814,-500.0,0.00016999,2]
[399955592,1766938244823,-190.55361039,0.00016999,2]
[399955593,1766938244833,-300.0,0.00016999,2]
[399955594,1766938244843,-1806.0,0.00017,2]
[399955595,1766938244855,-1086668.55874535,0.00017,2]
[399955596,1766938244867,-1694532.22655961,0.00017,2]
[399955597,1766938244893,-445958.90749289,0.00017,2]
[399955598,1766938245465,523.32466584,0.00030136,120]
[399955599,1766938245557,436.90778625,0.00030136,120]
[399955602,1766938245817,-93.80059252,0.00014564,2]
[399955603,1766938245828,-412.00702455,0.00014564,2]
[399955604,1766938245838,-500.0,0.00014972,2]
[399955605,1766938245848,-500.0,0.00014972,2]
[399955606,1766938245858,-500.0,0.00014972,2]
[399955607,1766938245869,-500.0,0.00014972,2]
[399955608,1766938245879,-500.0,0.00014972,2]
[399955609,1766938245888,-480.24738324,0.00014972,2]
[399955610,1766938245898,-500.0,0.00014972,2]
[399955611,1766938245907,-500.0,0.00014972,2]
[399955612,1766938245917,-500.0,0.00014972,2]
[399955613,1766938245926,-500.0,0.00014972,2]
[399955614,1766938245935,-500.0,0.00014972,2]
[399955615,1766938245948,-500.0,0.00016438,2]
[399955616,1766938245957,-500.0,0.00016438,2]
[399955617,1766938245967,-500.0,0.00016438,2]
[399955618,1766938245976,-500.0,0.00016438,2]
[399955619,1766938245985,-500.0,0.00016438,2]
[399955620,1766938245995,-500.0,0.00016438,2]
[399955621,1766938246004,-500.0,0.00016438,2]
[399955622,1766938246013,-550.0,0.00016438,2]
[399955623,1766938246023,-7239.91772607,0.00016572,2]
[399955624,1766938246033,-451909.26247362,0.00017,2]
[399955625,1766938246046,-878587.16657356,0.00017,2]
[399955626,1766938246056,-3086.11320278,0.00017,2]
[399955627,1766938246104,-919.4633,0.00017,2]
[399955628,1766938246227,-12092.84809936,0.00017,2]
[399955629,1766938246239,-712044.11204551,0.00017,2]
[399955631,1766938250371,160.21773808,0.00030136,120]
[399955632,1766938251324,500.0,0.00030136,120]
[399955633,1766938251915,462.75756819,0.00030136,120]
[399955634,1766938253837,408.02179857,0.00030136,120]
[399955635,1766938254892,500.0,0.00030136,120]
[399955636,1766938255151,317.05353746,0.00030136,120]
[399955637,1766938255276,474.37397022,0.00030136,120]
[399955638,1766938258443,533.55750468,0.00030136,120]
[399955639,1766938276510,252.24462599,0.00030136,120]
[399955640,1766938312062,190.63960634,0.00030136,120]
[399955641,1766938344485,500.0,0.00030136,120]
[399955642,1766938344704,164.53695788,0.00030136,120]
[399955643,1766938347722,500.0,0.00030136,120]
[399955644,1766938348620,585.02071227,0.00030136,120]
[399955645,1766938349240,500.0,0.00030136,120]
[399955646,1766938349491,500.0,0.00030136,120]
[399955647,1766938349741,500.0,0.00030136,120]
[399955648,1766938349997,248.5653322,0.00030136,120]
[399955649,1766938350742,435.83912678,0.00030136,120]
[399955650,1766938360436,255.32723466,0.00030136,120]
[399955651,1766938363908,500.0,0.00030136,120]
[399955652,1766938364155,500.0,0.00030136,120]
[399955653,1766938364410,592.31959164,0.00030136,120]
[399955654,1766938372325,500.0,0.00030136,120]
[399955655,1766938372575,500.8,0.00030136,120]
[399955656,1766938394074,414.35735577,0.00030136,120]
[399955657,1766938395865,411.688572,0.00030136,120]
[399955658,1766938486460,1000.0,0.00030137,120]
[399955659,1766938488876,407.5875969,0.00030136,120]
[399955660,1766938534690,425.72351277,0.00030136,120]
[399955661,1766938538359,245.10186267,0.00030136,120]
[399955662,1766938546325,410.61247741,0.00030136,120]
[399955663,1766938549580,413.00236916,0.00030136,120]
[399955664,1766938565271,406.85544551,0.00030136,120]
[399955665,1766938578806,500.0,0.00030136,120]
[399955666,1766938579039,312.40949385,0.00030136,120]
[399955667,1766938581648,305.66177686,0.00030136,120]
[399955668,1766938590612,406.4063914,0.00030136,120]
[399955670,1766938592325,406.12399864,0.00030136,120]
[399955671,1766938594058,255.9266759,0.00030136,120]
[399955672,1766938603900,404.53468408,0.00030136,120]
[399955673,1766938604294,493.95187548,0.00030136,120]
[399955674,1766938609647,410.03515767,0.00030136,120]
[399955675,1766938667698,249.8869682,0.00030136,120]
[399955676,1766938740984,500.0,0.00030136,120]
[399955677,1766938741215,500.0,0.00030136,120]
[399955678,1766938741450,500.0,0.00030136,120]
[399955679,1766938741684,500.0,0.00030136,120]
[399955680,1766938742181,500.0,0.00030136,120]
[399955681,1766938742275,500.0,0.00030136,120]
[399955682,1766938742445,410.64,0.00030136,120]
[399955684,1766938793068,150.21744607,0.00030137,120]
[399955685,1766938808043,1033.31,0.00030137,120]
[399955692,1766938953979,479.19090178,0.00030136,120]
[399955693,1766938981075,600.0,0.0003,120]
[399955694,1766939119564,3194.54360524,9e-05,2]
[399955698,1766939125557,1025.29515184,0.000108,2]
[399955701,1766939132003,163.35401625,0.0002,120]
[399955702,1766939165154,5535.67822813,0.00011,2]
[399955703,1766939225974,627.76497228,0.000226,120]
[399955705,1766939323991,183.34193787,0.0003,120]
[399955706,1766939349131,-657.07,0.00013699,2]
[399955707,1766939349152,-263.0,0.00013699,2]
[399955708,1766939349174,-1200.0,0.00014563,2]
[399955709,1766939349195,-300.0,0.00014563,2]
[399955710,1766939349216,-238.0,0.00014563,2]
[399955711,1766939349236,-300.0,0.00014563,2]
[399955712,1766939349258,-300.0,0.00014572,2]
[399955713,1766939349278,-500.0,0.00014573,2]
[399955714,1766939349299,-299.7519254,0.00014573,2]
[399955715,1766939349318,-459.48885658,0.00014573,2]
[399955718,1766939431879,-250.0,0.00013699,2]
[399955720,1766939431889,-263.0,0.00013699,2]
[399955721,1766939431899,-306.13212519,0.00014221,2]
[399955723,1766939431908,-500.0,0.00014573,2]
[399955725,1766939431918,-150.0,0.0001484,2]
[399955727,1766939431927,-1945.8,0.00014872,2]
[399955729,1766939431936,-922.08042949,0.00014878,2]
[399955731,1766939431947,-226.91957051,0.00014878,2]
[399955733,1766939431957,-49.73932454,0.00014879,2]
[399955734,1766939431968,-437.04724884,0.00014879,2]
[399955735,1766939431979,-583.18548524,0.00014879,2]
[399955736,1766939431990,-250.0,0.00014879,2]
[399955737,1766939432005,-4230.2938152,0.00014879,2]
[399955738,1766939432016,-396.09815507,0.00014879,2]
[399955739,1766939432027,-298.02975,0.00014879,2]
[399955740,1766939432059,-4315.35622111,0.00014879,2]
[399955741,1766939432068,-1677.58,0.00014884,2]
[399955742,1766939432078,-226.80578136,0.000149,2]
[399955743,1766939432087,-3176.67,0.00014912,2]
[399955744,1766939432097,-807.31,0.00014913,2]
[399955745,1766939432106,-54.81078281,0.00014976,2]
[399955746,1766939432125,-590.2430935,0.00014976,2]
[399955769,1766939437937,-800.6260223,0.00014976,2]
[399955770,1766939438165,-103.34010139,0.00014976,2]
[399955771,1766939438175,-250.0,0.00015068,2]
[399955772,1766939438185,-195.0,0.00015068,2]
[399955773,1766939438195,-300.0,0.00015069,2]
[399955774,1766939438205,-300.0,0.0001512,2]
[399955775,1766939438215,-6068.77498772,0.00015121,2]
[399955801,1766939438496,-2576.0915,0.00015121,2]
[399955804,1766939438513,-1355.12351228,0.00015121,2]
[399955806,1766939438523,-168.45,0.00015121,2]
[399955808,1766939438532,-299.99,0.00015121,2]
[399955810,1766939438543,-150.99,0.00015121,2]
[399955812,1766939438552,-500.0,0.00015121,2]
[399955814,1766939438561,-1000.0,0.00015121,2]
[399955816,1766939438571,-3882.3,0.00015184,2]
[399955818,1766939438581,-32.51103449,0.00015288,2]
[399955969,1766939440045,-117.48896551,0.00015288,2]
[399955970,1766939440055,-239.75748021,0.00015288,2]
[399955971,1766939440065,-153.18357723,0.00015288,2]
[399955972,1766939440074,-218.06631626,0.00015288,2]
[399955973,1766939440084,-150.0,0.00015288,2]
[399955974,1766939440093,-150.0,0.00015288,2]
[399955975,1766939440102,-150.0,0.00015288,2]
[399955976,1766939440111,-150.0,0.00015288,2]
[399955977,1766939440120,-150.53428596,0.00015288,2]
[399955978,1766939440129,-150.0,0.00015288,2]
[399955979,1766939440138,-150.0,0.00015288,2]
[399955980,1766939440147,-150.0,0.00015288,2]
[399955981,1766939440156,-150.0,0.00015288,2]
[399955982,1766939440165,-150.0,0.00015288,2]
[399955983,1766939440173,-150.0,0.00015288,2]
[399955984,1766939440183,-151.71,0.0001536,2]
[399955985,1766939440191,-60.06001024,0.00015424,2]
[399955986,1766939440203,-106.60998976,0.00015424,2]
[399955987,1766939440212,-200.0,0.00015648,2]
[399955988,1766939440221,-217.66686506,0.00015668,2]
[399955989,1766939440232,-481.03654491,0.00015668,2]
[399955990,1766939440243,-306.76280587,0.00015668,2]
[399955991,1766939440252,-200.0,0.00015674,2]
[399955993,1766939440262,-57.35291847,0.00015674,2]
[399955996,1766939440274,-141.46984182,0.00015674,2]
[399955998,1766939440283,-322.6107,0.00015674,2]
[399955999,1766939440292,-150.0,0.00015712,2]
[399956002,1766939440305,-278.91945818,0.00015846,3]
[399956004,1766939440317,-506.37642362,0.00015846,3]
[399956006,1766939440328,-213.7041182,0.00015846,3]
[399956008,1766939440338,-151.0,0.00015864,2]
[399956010,1766939440347,-17.83778917,0.00015864,2]
[399956012,1766939440358,-133.16221083,0.00015864,2]
[399956014,1766939440367,-151.0,0.00015864,2]
[399956016,1766939440377,-500.0,0.00015864,2]
[399956019,1766939440387,-151.0,0.00015868,2]
[399956021,1766939440397,-151.0,0.00015868,2]
[399956023,1766939440406,-500.0,0.00015973,2]
[399956024,1766939440415,-500.0,0.00015973,2]
[399956027,1766939440425,-500.0,0.00015989,2]
[399956028,1766939440435,-500.0,0.00015989,2]
[399956030,1766939440444,-500.0,0.00015989,2]
[399956032,1766939440453,-500.0,0.00015989,2]
[399956035,1766939440463,-500.0,0.00015989,2]
[399956037,1766939440472,-500.0,0.00015989,2]
[399956039,1766939440482,-500.0,0.00015989,2]
[399956040,1766939440491,-500.0,0.00015989,2]
[399956043,1766939440500,-358.3947287,0.00015989,2]
[399956045,1766939440509,-622.95838781,0.00015989,2]
[399956047,1766939440519,-500.0,0.00015989,2]
[399956049,1766939440527,-500.0,0.00015989,2]
[399956051,1766939440540,-500.0,0.00015989,2]
[399956053,1766939440552,-250.0,0.00015989,2]
[399956055,1766939440563,-500.0,0.00015989,2]
[399956057,1766939440573,-132.33460572,0.00015989,2]
[399956059,1766939440586,-367.66539428,0.00015989,2]
[399956061,1766939440598,-250.0,0.00015989,2]
[399956063,1766939440607,-500.0,0.00015989,2]
[399956065,1766939440617,-500.0,0.00015989,2]
[399956067,1766939440627,-250.0,0.00015989,2]
[399956069,1766939440638,-500.0,0.00015989,2]
[399956071,1766939440647,-500.0,0.00015989,2]
[399956073,1766939440658,-250.0,0.00015989,2]
[399956075,1766939440668,-500.0,0.00015989,2]